Cogmind - Beta 15 @@@ ROGUE MODE // 2025.10.14 @ 20:49:18 Player: beans Result: Destroyed by C-40 Crusher with Compactor Performance ------------- Evolutions (4) 2000 Regions Visited (8) 1600 Robots Destroyed (67) 335 Value Destroyed (1846) 1846 Prototype IDs (25) 500 Alien Tech Used (0) 0 Bonus (-324) -324 TOTAL SCORE: 5957 Bonus ------- High Alert Combat Kills 91 Aligned with FarCom 300 Friendly Fire -715 Cogmind --------- Core Integrity 0/850 Matter 295/300 Energy 98/100 System Corruption 45% Temperature Cool (0) Movement Core (50) Location -6/Waste Parts ------- > --- POWER (2) -------- (None) > --- PROPULSION (6) --- (None) > --- UTILITY (4) ------ (None) > --- WEAPON (3) ------- (None) > --- INVENTORY (5) ---- Light Armored Exoskeleton Gravity Neutralizer Experimental Sensor Array Latent Energy Streamer Peak State ------------ > --- POWER ------------ Improved Deuterium Engine Improved Deuterium Engine > --- PROPULSION ------- Light Armored Exoskeleton Light Armored Exoskeleton > --- UTILITY ---------- Experimental Sensor Array > --- WEAPON ----------- Latent Energy Streamer > --- INVENTORY -------- Light Armored Exoskeleton Armored Huge Wheel [Rating: 44] Favorites ----------- Power Improved Deuterium Engine Engine Improved Deuterium Engine Power Core Light Nuclear Core Propulsion Aluminum Leg Treads Light Treads Leg Aluminum Leg Utility Improved Heat Sink Device Improved Heat Sink Storage Compact Matter Pod Weapon Particle Gun Energy Gun Particle Gun Energy Cannon Latent Energy Streamer Ballistic Gun Assault Rifle Launcher Rocket Launcher Build | -11 -10 -10 -10 -9 -8 -7 -6 -6 ------- Run | Yrd Mat Min Exi Min Mat Fac Fac Was Slots Evolved 8 | . . . . . 4 2 2 . Power 1 | . . . . . 1 . . . Propulsion 4 | . . . . . 1 1 2 . Utility 2 | . . . . . 2 . . . Weapon 1 | . . . . . . 1 . . Parts Attached 28 | 4 3 4 1 . 11 3 2 . Power 6 | . 1 . . . 3 2 . . Engine 4 | . . . . . 2 2 . . Core 2 | . 1 . . . 1 . . . Reactor . | . . . . . . . . . Propulsion 8 | 2 . . . . 4 1 1 . Treads 3 | . . . . . 3 . . . Leg 5 | 2 . . . . 1 1 1 . Wheel . | . . . . . . . . . Hover . | . . . . . . . . . Flight . | . . . . . . . . . Utility 6 | . 1 2 . . 2 . 1 . Device 5 | . 1 2 . . 1 . 1 . Storage 1 | . . . . . 1 . . . Processor . | . . . . . . . . . Hackware . | . . . . . . . . . Protection . | . . . . . . . . . Artifact . | . . . . . . . . . Weapon 8 | 2 1 2 1 . 2 . . . Energy Gun 3 | . 1 2 . . . . . . Energy Cannon 1 | . . . 1 . . . . . Ballistic Gun 3 | 2 . . . . 1 . . . Ballistic Cannon . | . . . . . . . . . Launcher 1 | . . . . . 1 . . . Special Weapon . | . . . . . . . . . Impact Weapon . | . . . . . . . . . Slashing Weapon . | . . . . . . . . . Piercing Weapon . | . . . . . . . . . Special Melee Weapon . | . . . . . . . . . Unidentified Prototypes 2 | . . . . . 1 . 1 . Parts Lost 18 | . . 2 . . 12 1 3 . Power 5 | . . . . . 3 1 1 . Propulsion 5 | . . . . . 3 . 2 . Utility 4 | . . 1 . . 3 . . . Weapon 4 | . . 1 . . 3 . . . Highest Loss Streak 5 | . . 2 . . 5 1 3 . To Critical Strikes . | . . . . . . . . . Average Backups 3 | . . 3 4 5 4 1 2 4 Power . | . . . . . . . . . Propulsion . | . . . . . . . . 1 Utility 1 | . . . 1 1 1 . 1 2 Weapon 1 | . . 2 3 3 2 . . 1 Tool/Special . | . . . . . . . . . Unused Backups 2 | . . . 1 . . 1 . . Power . | . . . . . . . . . Propulsion 1 | . . . . . . 1 . . Utility 1 | . . . 1 . . . . . Weapon . | . . . . . . . . . Tool/Special . | . . . . . . . . . Average Slot Usage (%) 61 | . 66 96 100 100 49 38 23 . Engine 4 | . . . . . 5 13 4 . Core 6 | . 4 14 14 14 5 . . . Treads 1 | . . . . . 8 . . . Leg 19 | . 28 28 28 28 4 15 16 . Device 12 | . 5 24 28 28 10 2 . . Energy Gun 10 | . 5 25 23 14 5 . . . Energy Cannon 3 | . . . 4 14 2 5 3 . Ballistic Gun 2 | . 23 2 . . 5 . . . Peak Build Rating 44 | 4 11 15 23 24 37 44 44 3 Average Rating 21 | 2 6 14 17 23 17 35 28 3 On Entrance 13 | . 4 11 15 23 24 19 22 3 Naked Turns 146 | . . . . . . . 112 34 Heaviest Build 31 | 3 11 13 20 20 26 31 20 . Greatest Support 90 | 20 20 20 20 20 60 60 90 3 Greatest Overweight (x) 5 | . . . . . 5 1 . . Average Overweight (x) . | . . . . . . . . . Largest Inventory Capacity 5 | 5 5 5 5 5 5 5 5 5 Average Capacity 5 | 5 5 5 5 5 5 5 5 5 Most Carried 5 | 2 2 5 5 5 5 5 5 5 Average Carried 3 | . . 3 4 4 4 2 2 5 Final Capacity 5 | 5 5 5 5 5 5 5 5 5 Final Carried 5 | . 1 4 5 5 5 4 5 5 Class Distribution -------------------- 57% | Mutant 42% | Scavenger-Mutant Dominant Class ---------------- Mutant | -10/Materials Scavenger-Mutant | -10/Mines Scavenger-Mutant | -10/Exiles Scavenger-Mutant | -9/Mines Scavenger-Mutant | -8/Materials Mutant | -7/Factory Mutant | -6/Factory Mutant | -6/Waste Resources | -11 -10 -10 -10 -9 -8 -7 -6 -6 ----------- Run | Yrd Mat Min Exi Min Mat Fac Fac Was Matter Collected 875 | 42 115 266 . 10 278 84 80 . Remotely . | . . . . . . . . . Salvage Created 2539 | . 115 359 . . 810 804 451 . Parts 132 | . 12 28 . . 43 31 18 . Haulers Intercepted 3 | . . . . . 3 . . . Recyclers Shooed 3 | . . 2 . . 1 . . . Parts Field Recycled . | . . . . . . . . . Retrieved Matter . | . . . . . . . . . Parts Self-Destructed . | . . . . . . . . . Prevented . | . . . . . . . . . Kills | -11 -10 -10 -10 -9 -8 -7 -6 -6 ------- Run | Yrd Mat Min Exi Min Mat Fac Fac Was Combat Hostiles Destroyed 38 | . 2 7 . . 19 8 2 . Guns 17 | . 2 7 . . 8 . . . AOE 20 | . . . . . 11 7 2 . Classes Destroyed 14 | . 2 4 . . 5 2 1 . Worker 6 | . . 2 . . . 1 3 . Builder 4 | . 1 . . . 3 . . . Tunneler 3 | . . 2 . . . 1 . . Hauler 3 | . . . . . 3 . . . Recycler 4 | . . 1 . . . 1 2 . Mechanic 1 | . . . . . . 1 . . Operator 1 | . . . . . . 1 . . Watcher 4 | . . . . . 1 3 . . Swarmer 15 | . . 3 . . 9 3 . . Grunt 18 | . 2 4 . . 7 4 1 . Brawler 1 | . . . . . 1 . . . Duelist 2 | . . . . . 1 1 . . Hunter 1 | . . . . . 1 . . . Programmer 1 | . . . . . . . 1 . Thug 3 | . . . . . . 3 . . Best Kill Streak 9 | . 2 3 . . 9 5 3 . Combat Bots Only 9 | . 2 3 . . 9 3 2 . Max Kills in Single Turn 4 | . 1 2 . . 4 3 2 . Gunslinging 1 | . . 1 . . . . . . Exploded 3 | . . . . . 2 3 2 . Melee . | . . . . . . . . . Uniques/NPCs Destroyed . | . . . . . . . . . Combat | -11 -10 -10 -10 -9 -8 -7 -6 -6 -------- Run | Yrd Mat Min Exi Min Mat Fac Fac Was Hostile Shots Fired 488 | . 29 27 . . 152 20 259 1 Missed 192 | . 10 8 . . 56 7 111 . Hits 296 | . 19 19 . . 96 13 148 1 Melee 2 | . . . . . 1 . . 1 Projectile 294 | . 19 19 . . 95 13 148 . Critical Strikes 19 | . . . . . 5 2 12 . Part Disruptions 1 | . . . . . . . 1 . Damage Taken 4929 | . 253 227 . . 1362 443 2603 41 Core 1300 | . 93 45 . . 249 60 812 41 Absorbed by Shields 24 | . . . . . . . 24 . Regen/Repaired (Parts) 27 | . . . . . . 27 . . Core Remaining (%) 72 | 100 . . . 44 54 91 . . Volleys Fired 157 | . 26 35 . 1 71 14 10 . Largest 2 | . 2 2 . 1 2 1 1 . Hottest 130 | . 85 130 . 60 98 60 60 . Shots Fired 245 | . 51 67 . 1 101 15 10 . Gun 201 | . 51 67 . . 83 . . . Cannon 37 | . . . . 1 11 15 10 . Launcher 7 | . . . . . 7 . . . Special . | . . . . . . . . . Kinetic 102 | . 43 6 . . 53 . . . Thermal 99 | . 8 61 . . 30 . . . Explosive 7 | . . . . . 7 . . . Electromagnetic 37 | . . . . 1 11 15 10 . Robot Hit Streak 9 | . 7 9 . . 6 2 2 . Robot Miss Streak 5 | . 2 3 . . 5 4 3 . Penetration Max . | . . . . . . . . . Secondary Targets 1 | . . 1 . . . . . . Max Gunslinging Chain 1 | . . 1 . . . . . . Shots Hit Robots 129 | . 31 33 . . 55 5 5 . Core Hits 123 | . 8 17 . . 53 24 21 . Critical Kills . | . . . . . . . . . Critical Parts Destroyed . | . . . . . . . . . Critical Strikes 1 | . . 1 . . . . . . Burn 1 | . . 1 . . . . . . Melee Attacks . | . . . . . . . . . Impact . | . . . . . . . . . Slashing . | . . . . . . . . . Piercing . | . . . . . . . . . Sneak Attacks . | . . . . . . . . . Combat Hostiles . | . . . . . . . . . Follow-up Attacks . | . . . . . . . . . Damage Inflicted 6792 | . 374 524 . . 2518 2467 909 . Guns 1608 | . 374 524 . . 710 . . . Cannons 90 | . . . . . 55 28 7 . Explosions 5094 | . . . . . 1753 2439 902 . Melee . | . . . . . . . . . Ramming . | . . . . . . . . . Kinetic 789 | . 297 38 . . 454 . . . Thermal 1155 | . 77 486 . . 324 268 . . Explosive 900 | . . . . . 745 155 . . Electromagnetic 3948 | . . . . . 995 2044 909 . Impact . | . . . . . . . . . Slashing . | . . . . . . . . . Piercing . | . . . . . . . . . Highest Corruption 45 | . . . . 1 21 41 37 45 Average Corruption 17 | . . . . 1 11 20 18 41 Corruption Purged . | . . . . . . . . . Corruption Blocked . | . . . . . . . . . Effects 63 | . . . . . 19 21 22 1 Message Errors 12 | . . . . . 2 7 3 . Matter Fused 14 | . . . . . 3 6 5 . Heat Flow Errors 10 | . . . . . 5 2 2 1 Energy Discharges 5 | . . . . . 1 . 4 . Parts Rejected 1 | . . . . . . . 1 . Data Loss (minor) 6 | . . . . . 5 . 1 . Data Loss (major) 4 | . . . . . 1 3 . . Misfires 2 | . . . . . . 2 . . Misdirections 7 | . . . . . 1 . 6 . Weapon Failures 2 | . . . . . 1 1 . . Overload Shots . | . . . . . . . . . Overflow Damage 190 | . . . . . 56 102 32 . Projectiles . | . . . . . . . . . Explosions 190 | . . . . . 56 102 32 . Melee . | . . . . . . . . . Knockbacks . | . . . . . . . . . Impact . | . . . . . . . . . Kinetic . | . . . . . . . . . Secondary . | . . . . . . . . . Self-Inflicted Damage 429 | . . . . . 78 253 98 . Shots 8 | . . . . . 3 4 1 . Rammed . | . . . . . . . . . Targets Rammed . | . . . . . . . . . Kicked . | . . . . . . . . . Crushed . | . . . . . . . . . Highest Temperature 287 | . 10 88 . . 239 186 287 110 Average Temperature 59 | . 4 41 . . 85 39 110 73 Received Heat Transfer 1518 | . 144 105 . . 486 9 774 . Siege Activations . | . . . . . . . . . Martial Activations . | . . . . . . . . . Shielding Activations . | . . . . . . . . . Robots Disrupted . | . . . . . . . . . Combat Hostiles . | . . . . . . . . . Robots Corrupted 3 | . . . . . . 3 . . Combat Hostiles 1 | . . . . . . 1 . . Parts Fried 14 | . . . . . 3 7 4 . Impact Corruptions . | . . . . . . . . . Robots Melted . | . . . . . . . . . Combat Hostiles . | . . . . . . . . . Parts Melted 3 | . . 1 . . 1 1 . . Heat Transferred 2235 | . 185 1221 . . 679 150 . . Parts Sabotaged . | . . . . . . . . . Parts Stolen . | . . . . . . . . . Parts Stripped . | . . . . . . . . . Power Chain Reactions 1 | . . . . . 1 . . . Latent Energy Used 4899 | . . . . 50 1050 2261 1538 . LE Corruption 86 | . . . . 1 21 38 26 . Alert | -11 -10 -10 -10 -9 -8 -7 -6 -6 ------- Run | Yrd Mat Min Exi Min Mat Fac Fac Was Maximum Alert Level 3 | . . . . . 2 3 2 . Low Security (%) 61 | 100 100 100 . 100 64 46 . 100 Level 1 24 | . . . . . 28 9 87 . Level 2 7 | . . . . . 7 15 12 . Level 3 6 | . . . . . . 28 . . Level 4 . | . . . . . . . . . Level 5 . | . . . . . . . . . High Security . | . . . . . . . . . Max Security . | . . . . . . . . . Peak Influence 771 | . 40 70 . . 410 771 505 182 Initial 364 | . . 5 . . . 170 364 182 Average 194 | . 17 16 . . 194 395 310 177 Influence Increases 2270 | . 55 195 . . 710 870 440 . Destroy 0b10 Robot/C 760 | . 40 140 . . 380 160 40 . Destroy 0b10 Robot/NC 130 | . 5 25 . . 35 40 25 . Destroy Leader 184 | . 10 30 . . 88 36 20 . Successful Hack 6 | . . . . . . 6 . . Disable Machine 375 | . . . . . 45 300 30 . Anti-Garrison Action 150 | . . . . . . 150 . . Destroy Structure 320 | . . . . . 102 178 40 . Lose Combat Pursuer 345 | . . . . . 60 . 285 . Influence Decreases 2098 | . 40 196 14 . 334 502 664 348 Entered New Map 948 | . . 10 14 . . 206 380 338 Time Decay 970 | . 40 166 . . 214 286 254 10 Lost Part 180 | . . 20 . . 120 10 30 . Squads Dispatched 13 | . . . . . 6 4 3 . Investigation 2 | . . . . . 1 1 . . Extermination 2 | . . . . . . 1 1 . Reinforcement 5 | . . . . . 3 . 2 . Assault 2 | . . . . . . 2 . . Garrison 2 | . . . . . 2 . . . Intercept . | . . . . . . . . . Searches Triggered . | . . . . . . . . . Construction Impeded 3 | . . . . . 2 . 1 . Haulers Reinforced . | . . . . . . . . . Active Scanning Responses . | . . . . . . . . . Cargo Convoy Interrupts . | . . . . . . . . . Stealth | -11 -10 -10 -10 -9 -8 -7 -6 -6 --------- Run | Yrd Mat Min Exi Min Mat Fac Fac Was Distress Signals 6 | . 1 . . . 4 . 1 . Communications Jammed . | . . . . . . . . . Distress Signals . | . . . . . . . . . Times Spotted 75 | . 4 7 . . 28 7 24 5 Peak Tracking Total 11 | . 3 2 . . 9 3 11 4 Tactical Retreats 6 | . . . . . 2 . 4 . Traps | -11 -10 -10 -10 -9 -8 -7 -6 -6 ------- Run | Yrd Mat Min Exi Min Mat Fac Fac Was Traps Triggered 10 | . . . . . 4 2 4 . Indirectly 8 | . . . . . 4 2 2 . Trap Hack Attempts . | . . . . . . . . . Triggered . | . . . . . . . . . Disarmed . | . . . . . . . . . Reprogrammed . | . . . . . . . . . Reused . | . . . . . . . . . Traps Extracted . | . . . . . . . . . Installed . | . . . . . . . . . Triggered . | . . . . . . . . . Machines | -11 -10 -10 -10 -9 -8 -7 -6 -6 ---------- Run | Yrd Mat Min Exi Min Mat Fac Fac Was Machines Disabled 26 | . . . . . 3 21 2 . Max in Single Turn 4 | . . . . . 1 4 1 . Garrison Access 1 | . . . . . . 1 . . Machines Repaired . | . . . . . . . . . Machines Dismantled . | . . . . . . . . . Machines Sabotaged . | . . . . . . . . . Overloaded Fab Kills . | . . . . . . . . . Hacking | -11 -10 -10 -10 -9 -8 -7 -6 -6 --------- Run | Yrd Mat Min Exi Min Mat Fac Fac Was Machines Accessed 4 | . 1 . 1 . . 2 . . Terminals 2 | . 1 . . . . 1 . . Fabricators . | . . . . . . . . . Repair Stations 1 | . . . . . . 1 . . Recycling Units . | . . . . . . . . . Scanalyzers . | . . . . . . . . . Garrison Access . | . . . . . . . . . Total Hacks 5 | . 1 . 1 . . 3 . . Successful 5 | . 1 . 1 . . 3 . . Failed . | . . . . . . . . . Catastrophic . | . . . . . . . . . Database Lockouts . | . . . . . . . . . Manual 1 | . . . 1 . . . . . Terminals 2 | . 1 . . . . 1 . . Fabricators . | . . . . . . . . . Repair Stations 2 | . . . . . . 2 . . Recycling Units . | . . . . . . . . . Scanalyzers . | . . . . . . . . . Garrison Access . | . . . . . . . . . Terminal Hacks 3 | . 1 . 1 . . 1 . . Open DSF 1 | . . . . . . 1 . . Dispatch Records 1 | . 1 . . . . . . . Proto ID Catalog 1 | . . . 1 . . . . . Fabricator Hacks . | . . . . . . . . . Repair Station Hacks 2 | . . . . . . 2 . . Scan Component 1 | . . . . . . 1 . . Repair 1 | . . . . . . 1 . . Recycling Unit Hacks . | . . . . . . . . . Scanalyzer . | . . . . . . . . . Garrison Access Hacks . | . . . . . . . . . Unauthorized Hacks . | . . . . . . . . . Terminals . | . . . . . . . . . Fabricators . | . . . . . . . . . Repair Stations . | . . . . . . . . . Recycling Units . | . . . . . . . . . Scanalyzers . | . . . . . . . . . Garrison Access . | . . . . . . . . . Data Cores Recovered . | . . . . . . . . . Used . | . . . . . . . . . Hacking Detections . | . . . . . . . . . Full Trace Events . | . . . . . . . . . Feedback Events . | . . . . . . . . . Feedback Blocked . | . . . . . . . . . Robot Schematics Acquired . | . . . . . . . . . Robots Built . | . . . . . . . . . Authchips . | . . . . . . . . . Time . | . . . . . . . . . Total Robot Build Rating . | . . . . . . . . . Part Schematics Acquired . | . . . . . . . . . Parts Built . | . . . . . . . . . Authchips . | . . . . . . . . . Time . | . . . . . . . . . Total Part Build Rating . | . . . . . . . . . Parts Repaired 1 | . . . . . . 1 . . Time 44 | . . . . . . 44 . . Parts Recycled . | . . . . . . . . . Recycled Matter . | . . . . . . . . . Retrieved Matter . | . . . . . . . . . Retrieved Components . | . . . . . . . . . Parts Scanalyzed . | . . . . . . . . . Part Schematics Acquired . | . . . . . . . . . Parts Damaged . | . . . . . . . . . Bothacking | -11 -10 -10 -10 -9 -8 -7 -6 -6 ------------ Run | Yrd Mat Min Exi Min Mat Fac Fac Was Used RIF Installer . | . . . . . . . . . Robots Hacked . | . . . . . . . . . Non-combat . | . . . . . . . . . Combat . | . . . . . . . . . Robot Hacks Applied . | . . . . . . . . . Relay Couplers Released 1 | . . . . . . 1 . . Machine Destruction 1 | . . . . . . 1 . . Fabnet Peak Effective % . | . . . . . . . . . Robots Rewired . | . . . . . . . . . Allies Hacked . | . . . . . . . . . Hacks Repelled . | . . . . . . . . . Allies | -11 -10 -10 -10 -9 -8 -7 -6 -6 -------- Run | Yrd Mat Min Exi Min Mat Fac Fac Was Total Allies 1 | . . . . . . . . 1 Largest Group 1 | . . . . . . . . 1 Highest-Rated Group 31 | . . . . . . . . 31 Highest-Rated Ally 31 | . . . . . . . . 31 Total Orders . | . . . . . . . . . Ally Attacks 6 | . . . . . . . . 6 Total Damage 125 | . . . . . . . . 125 Kills . | . . . . . . . . . Allies Corrupted . | . . . . . . . . . Allies Melted . | . . . . . . . . . Intel | -11 -10 -10 -10 -9 -8 -7 -6 -6 ------- Run | Yrd Mat Min Exi Min Mat Fac Fac Was Active Infowar (turns) 122 | . . . . . 78 44 . . Sensors 122 | . . . . . 78 44 . . Robot Analysis Total . | . . . . . . . . . Derelict Logs Recovered 1 | . . 1 . . . . . . Drone Launches . | . . . . . . . . . Drone Recoveries . | . . . . . . . . . Exploration | -11 -10 -10 -10 -9 -8 -7 -6 -6 ------------- Run | Yrd Mat Min Exi Min Mat Fac Fac Was Turns Passed 3001 | 30 136 747 288 137 451 627 551 34 Spaces Moved 1961 | 23 46 514 237 112 163 384 424 58 Core 320 | 7 . . . . 61 . 194 58 Treads 60 | . . . . . 60 . . . Legs 1581 | 16 46 514 237 112 42 384 230 . Wheels . | . . . . . . . . . Hover . | . . . . . . . . . Flight . | . . . . . . . . . Fastest Speed 50 | 50 120 120 120 120 50 140 50 50 Average Speed 118 | 98 120 120 120 120 133 140 98 50 Slowest Speed 300 | 120 120 120 120 120 300 250 140 50 Overloaded Moves . | . . . . . . . . . Propulsion Burnouts . | . . . . . . . . . Robots Hopped . | . . . . . . . . . Potential Cave-ins . | . . . . . . . . . Cave-ins Triggered . | . . . . . . . . . Exploration Rate (%) 34 | 3 13 83 61 42 28 16 10 52 Regions Visited 8 Branch Regions 3 Pre-discovered Areas 1 | . . 1 . . . . . . Known Exits Taken . | . . . . . . . . . Unknown Exits Taken 7 | 1 1 1 1 1 1 1 . . Scrap Searched 4 | . . 2 . 2 . . . . Spaces Dug . | . . . . . . . . . Terrain Destroyed 388 | . . . . . 115 212 61 . Melee . | . . . . . . . . . Projectile . | . . . . . . . . . AOE 388 | . . . . . 115 212 61 . Terrain Rammed . | . . . . . . . . . Walls Destroyed . | . . . . . . . . . Machines Disabled . | . . . . . . . . . Actions | -11 -10 -10 -10 -9 -8 -7 -6 -6 --------- Run | Yrd Mat Min Exi Min Mat Fac Fac Was Total 2398 | 30 78 576 240 114 290 460 547 63 Wait 183 | . 1 17 . . 19 53 88 5 Move 1953 | 22 45 513 236 111 162 382 424 58 Hop . | . . . . . . . . . Pick Up 27 | 4 3 6 2 1 5 4 2 . Fast Attach 7 | . . 1 . . 6 . . . Attach 27 | 4 2 2 . . 9 4 6 . Detach 11 | . . . . . 4 2 5 . Swap 12 | . 1 1 1 . 9 . . . Drop 9 | . . 1 1 1 5 1 . . Fire 157 | . 26 35 . 1 71 14 10 . Melee . | . . . . . . . . . Ram . | . . . . . . . . . Kick . | . . . . . . . . . Crush . | . . . . . . . . . Escape Stasis 12 | . . . . . . . 12 . Rewire . | . . . . . . . . . Trap . | . . . . . . . . . Miscellaneous . | . . . . . . . . . Route ------- -11/Scrapyard -10/Materials -10/Mines (discovered 3 exits: [*Mat x2] / *Exi) -10/Exiles -9/Mines -8/Materials -7/Factory -6/Factory -6/Waste History --------- Turn | Location | Event 5 | -11/Scrapyard | Discovered new exit (range 15) 31 | -11/Scrapyard | Entered Materials 110 | -10/Materials | Discovered new exit (range 15) 167 | -10/Materials | Entered Mines 174 | -10/Mines | Received a Rocket Launcher from a helpful Derelict 545 | -10/Mines | Discovered new exit (range 6) 595 | -10/Mines | Build established: Scavenger-Mutant 680 | -10/Mines | Core integrity fell below 50% 767 | -10/Mines | Discovered new exit (range 5) 909 | -10/Mines | Deemed a non-threat by the Exiles lab entrance 909 | -10/Mines | Discovered new exit (range 5) 914 | -10/Mines | Entered Exiles 943 | -10/Exiles | Met 8R-AWN 965 | -10/Exiles | Met EX-HEX 998 | -10/Exiles | Met EX-BIN 1012 | -10/Exiles | Aligned with FarCom system 1013 | -10/Exiles | Given EX-Vault access code 1040 | -10/Exiles | Opened EX-Vault 1048 | -10/Exiles | Found Modified TNC 1052 | -10/Exiles | Found Latent Energy Streamer 1078 | -10/Exiles | Warned to stay clear of 0b10 Research branches 1145 | -10/Exiles | Met EX-DEC 1186 | -10/Exiles | Discovered new exit (range 14) 1202 | -10/Exiles | Left Exiles lab with Latent Energy Streamer 1202 | -10/Exiles | Entered Mines 1258 | -9/Mines | Found a damaged Exp. Sensor Array with a note attached 1261 | -9/Mines | Found Prototype Device 1313 | -9/Mines | Discovered new exit (range 13) 1339 | -9/Mines | Entered Materials 1339 | -8/Materials | Evolved 4 slots: Power x1, Propulsion x1, Utility x2 1492 | -8/Materials | Lost 4 parts (1p1n1u1w) 1548 | -8/Materials | System corruption reached 10% 1663 | -8/Materials | Garrison activated, responded to threat 1711 | -8/Materials | Destroyed 9 combat bots 1712 | -8/Materials | Identified Exp. Sensor Array 1784 | -8/Materials | Discovered new exit (range 14) 1790 | -8/Materials | Entered Factory 1790 | -7/Factory | Evolved 2 slots: Propulsion x1, Weapon x1 1797 | -7/Factory | Lost 5 parts (1p2u2w) 2083 | -7/Factory | Allied Derelicts emerged from ambush trap array 2089 | -7/Factory | Build established: Mutant 2111 | -7/Factory | System corruption reached 10% 2237 | -7/Factory | System corruption reached 30% 2249 | -7/Factory | Repaired Lgt. Armored Exoskeleton 2346 | -7/Factory | Discovered new exit (range 15) 2417 | -7/Factory | Entered another Factory area 2417 | -6/Factory | Evolved 2 slots: Propulsion x2 2725 | -6/Factory | System corruption reached 10% 2820 | -6/Factory | System corruption reached 30% 2858 | -6/Factory | Core integrity fell below 50% 2881 | -6/Factory | Lost 3 parts (1p2n) 2915 | -6/Factory | Core integrity fell below 20% 2968 | -6/Factory | Manually triggered Chute Trap 2968 | -6/Factory | Sucked down chute 2968 | -6/Factory | Entered Waste 2969 | -6/Waste | Met a frightened Derelict 2983 | -6/Waste | EMP discharged 2988 | -6/Waste | Spotted C-40 Crusher 2996 | -6/Waste | Spotted C-40 Crusher 2997 | -6/Waste | Spotted C-40 Crusher 3000 | -6/Waste | Spotted C-40 Crusher 3001 | -6/Waste | Spotted C-40 Crusher 3002 | -6/Waste | Destroyed by C-40 Crusher with Compactor Last Messages --------------- 5MK9FN 0GGO59W3M:=4S>O&